[Event "Germany Countries-chT Youth 2022"]
[Site "Wiesbaden"]
[Date "2022.10.04"]
[Round "7"]
[White "Hänselmann, Hendrik"]
[Black "Heinrich, John"]
[Result "0-1"]
[ECO "B23"]
[WhiteElo "1989"]
[BlackElo "2139"]
[Annotator "TA"]
[PlyCount "86"]
[EventDate "2022.09.28"]
[EventType "team-tourn"]
[EventRounds "7"]
[EventCountry "GER"]
[SourceTitle "playchess.com"]
[Source "ChessBase"]
[SourceQuality "1"]
[TimeControl "40/5400+30:1800+30"]

{[%evp 10,86,31,4,13,18,29,27,29,8,134,-4,42,31,54,46,44,33,29,-24,-28,-40,-43,-47,37,14,0,43,77,31,33,-62,-36,-152,-76,-72,-81,-77,-77,-80,-70,-74,-78,-80,-77,-79,-39,-61,0,-128,-29,-532,-533,-523,-496,-773,-763,-769,-739,-919,-933,-1686,-1609,-29978,-29979,-6179,-4714,-4133,-4134,-4133,-4133,-2402,-1768,-29943,-7283,-29984,-29985,-29990,-29991]} 1. e4 {[%emt 0:00:05]} c5 {[%emt 0:00:10]} 2. Nc3 {[%emt 0:00:03]} a6 {[%emt 0:00:06]} 3. g3 {[%emt 0:00:05]} b5 {[%emt 0:00:09]} 4. Bg2 {[%emt 0:00:04]} Bb7 {[%emt 0:00:06]} 5. d3 {[%emt 0:00:14]} e6 {[%emt 0:00:34]} 6. Nh3 {[%emt 0:00:05]} b4 {[%emt 0:08:41] is the new trend. B23: Closed Sicilian: Lines without g3.} 7. Na4 {[%emt 0:05:19]} Nf6 {[%emt 0:08:01]} 8. O-O {[%emt 0:01:22]} Be7 {[%emt 0:10:03] White has an edge.} 9. f4 {[%emt 0:02:45] [#]} d5 $146 {[%emt 0:03:48]} (9... O-O $11 {remains equal.}) ({Predecessor:} 9... Qc7 10. g4 h5 11. g5 Ng4 12. b3 f6 13. Nf2 fxg5 14. Nxg4 hxg4 15. Qxg4 Nc6 {½-½ (44) Bettalli,F (2237)-Bjerre,J (2557) Cattolica 2021}) 10. Nf2 {[%emt 0:12:22]} (10. e5 $16) 10... Nc6 {[%emt 0:07:02]} (10... Bc6 $11 11. b3 O-O) 11. c3 {[%emt 0:18:57]} Qa5 {[%emt 0:12:11]} 12. a3 {[%emt 0:07:50]} bxc3 {[%emt 0:01:14]} 13. bxc3 {[%emt 0:01:37]} O-O {[%emt 0:03:48]} 14. g4 {[%emt 0:03:49]} (14. Rb1 $142 Rab8 15. Bd2) 14... dxe4 $11 {[%emt 0:03:51]} 15. dxe4 {[%emt 0:01:01]} Rfd8 {[%emt 0:01:18]} 16. Qc2 {[%emt 0:02:50]} e5 {[%emt 0:03:39]} (16... Qc7 $15) 17. g5 $14 {[%emt 0:07:30]} Nh5 {[%emt 0:01:50]} 18. f5 {[%emt 0:01:29][%cal Of5f6]} Nf4 {[%emt 0:03:33]} 19. Bxf4 {[%emt 0:07:49]} (19. Rb1 $16 Rab8 20. Bxf4 exf4 21. e5) 19... exf4 {[%emt 0:00:10]} 20. Nh3 {[%emt 0:02:23] Pair of Knights!} (20. Rab1 $14 Rab8 21. e5) 20... Ne5 {[%emt 0:03:54] [#] Hoping for ...Nc4.} (20... f3 $5 21. Bxf3 Ne5 $15) 21. Rxf4 {[%emt 0:01:52]} ({Better is} 21. f6 $1 $15 gxf6 22. Nxf4) 21... Rd6 {[%emt 0:04:12]} ({Black should try} 21... Nd3 22. Rh4 c4) 22. Rb1 $17 {[%emt 0:06:25]} Bc6 {[%emt 0:02:55]} 23. Nb6 {[%emt 0:01:28]} Rb8 {[%emt 0:00:28]} 24. Nd5 {[%emt 0:00:15]} Rxb1+ {[%emt 0:00:26]} 25. Qxb1 {[%emt 0:00:01]} Bxd5 {[%emt 0:00:18]} 26. exd5 {[%emt 0:00:01]} Qxc3 {[%emt 0:00:58]} 27. Kh1 {[%emt 0:04:53]} Qxa3 {[%emt 0:02:50] Black is much more active.} 28. f6 {[%emt 0:02:51]} Bf8 {[%emt 0:01:00]} (28... gxf6 $15 29. gxf6 Bf8) 29. Re4 {[%emt 0:02:53]} (29. fxg7 $11 Bxg7 30. Qb8+ (30. Rh4 Qd3 $17) 30... Bf8 31. Rf1) 29... Nd3 {[%emt 0:05:28]} ({Black should play} 29... gxf6 $17 {And now ...Qd3 would win.} 30. gxf6 Ng6) 30. Re3 $2 {[%emt 0:02:52][%mdl 8192] [#] Inhibits Qd3. This move loses the game for White.} (30. Re8 $11 {and White is okay.} Rb6 31. Qf1 (31. Qxb6 {is a self mate.} Qc1+) (31. Rxf8+ $2 Kxf8 32. Qd1 Qc1 $19)) 30... Nf2+ $1 $19 {[%emt 0:00:44][%mdl 512]} 31. Nxf2 {[%emt 0:00:12]} Qxe3 {[%emt 0:00:05]} 32. Ng4 {[%emt 0:00:19]} (32. Ne4 $142 Rxd5 33. fxg7 Kxg7 34. Ng3 Qxg5 35. Bxd5 Qxd5+ 36. Kg1) 32... Qxg5 {[%emt 0:00:37]} 33. fxg7 {[%emt 0:00:22]} Bxg7 {[%emt 0:00:48]} 34. h3 {[%emt 0:00:17]} h5 {[%emt 0:00:29]} 35. Nf2 {[%emt 0:00:19]} Be5 {[%emt 0:01:50]} 36. Ne4 {[%emt 0:00:46]} Qf4 {[%emt 0:00:04][%csl Ge5][%cal Rf4h2]} 37. Qg1 {[%emt 0:00:04]} Rg6 {[%emt 0:00:34]} 38. Nxc5 {[%emt 0:00:56]} Bd4 {[%emt 0:02:04]} 39. Nd3 {[%emt 0:00:07]} Qg3 {[%emt 0:00:10]} 40. Qf1 {[%emt 0:00:12]} a5 {[%emt 0:03:19][%cal Ba6a5,Ba5a4][%mdl 32]} 41. Qe2 {[%emt 0:30:46]} Rb6 {[%emt 0:31:23] ( -> ...Rb1+)} 42. Qc2 {[%emt 0:01:31]} a4 {[%emt 0:00:39]} 43. Qc8+ {[%emt 0:01:31]} Kg7 {[%emt 0:00:12] Weighted Error Value: White=0.92/Black=0.38} 0-1

[Event "Germany Countries-chT Youth 2022"]
[Site "Wiesbaden"]
[Date "2022.10.04"]
[Round "7"]
[White "Kocharin, Timur"]
[Black "Herrmann, Jakob"]
[Result "1-0"]
[ECO "B76"]
[WhiteElo "1971"]
[BlackElo "1888"]
[Annotator "TA"]
[PlyCount "151"]
[EventDate "2022.09.28"]
[EventType "team-tourn"]
[EventRounds "7"]
[EventCountry "GER"]
[SourceTitle "playchess.com"]
[Source "ChessBase"]
[SourceQuality "1"]
[TimeControl "40/5400+30:1800+30"]

{[%evp 29,151,33,69,66,69,75,73,68,63,65,51,55,49,54,117,62,99,90,160,162,132,108,108,108,108,108,108,108,108,107,114,108,107,107,107,107,187,114,449,449,546,547,545,533,534,543,691,691,682,651,712,600,588,525,583,525,694,523,523,516,516,516,472,472,522,472,449,331,472,398,471,435,633,615,647,606,29975,29976,29976,29977,29975,29975,29974,29974,29983,29984,29984,29985,29985,29986,29986,29987,29987,29988,29990,29990,29990,29991,29991,29991,29991,29992,29992,29993,29993,29992,29992,29991,29991,29992,29992,29991,29991,29992,29992,29991,29991,29992,29992,29993,29993,29994,29994,4134]} 1. e4 {[%emt 0:00:29]} c5 {[%emt 0:00:15]} 2. Nf3 {[%emt 0:00:18]} d6 {[%emt 0:00:11]} 3. d4 {[%emt 0:00:22]} cxd4 {[%emt 0:00:09]} 4. Nxd4 {[%emt 0:00:07]} Nf6 {[%emt 0:00:10]} 5. Nc3 {[%emt 0:00:07]} g6 {[%emt 0:00:21]} 6. Be3 {[%emt 0:00:43]} Bg7 {[%emt 0:00:16]} 7. f3 {[%emt 0:00:20]} O-O {[%emt 0:00:12]} 8. Qd2 {[%emt 0:00:36]} Nc6 {[%emt 0:00:10]} 9. O-O-O {[%emt 0:00:32]} d5 {[%emt 0:02:22]} 10. exd5 {[%emt 0:00:47]} Nxd5 {[%emt 0:00:12]} 11. Nxc6 {[%emt 0:00:18]} bxc6 {[%emt 0:00:16]} 12. Bd4 {[%emt 0:00:53]} e5 {[%emt 0:00:50]} 13. Bc5 {[%emt 0:00:32]} Be6 {[%emt 0:00:30]} 14. h4 {[%emt 0:10:40]} Rb8 {[%emt 0:10:34]} 15. Ne4 {[%emt 0:05:40]} Re8 {[%emt 0:06:10]} 16. c4 {[%emt 0:05:52] B76: Sicilian Dragon: Yugoslav Attack, 9 g4 and 9 0-0-0.} ({Wrong is} 16. Bxa7 $2 Ra8 17. Bc5 Rxa2 $19) 16... Nf6 {[%emt 0:17:16][%cal Bd5f6,Bf6e4,Be4g3][%mdl 32] [#]} 17. Qxd8 $146 {[%emt 0:11:36] White is more active.} ({Predecessor:} 17. Qe1 Qc7 18. Bd6 Qb6 19. Bxb8 Rxb8 20. Qc3 Nd5 21. Qa3 Bh6+ 22. Kb1 Ne3 23. Rc1 Qd4 {0-1 (44) Babayev,T (2325)-Domogaev,S (2509) Bogoroditsk 2011}) 17... Rexd8 {[%emt 0:00:09]} 18. Rxd8+ {[%emt 0:08:05] White is better.} Rxd8 {[%emt 0:00:05]} 19. Be7 {[%emt 0:04:06]} Nxe4 {[%emt 0:03:52]} (19... Bh6+ $2 20. Ng5 Nh5 21. Bxd8 $18) 20. Bxd8 {[%emt 0:00:19]} Ng3 {[%emt 0:00:31]} 21. Rg1 {[%emt 0:00:06] Threatens to win with Bd3.} e4 {[%emt 0:01:02] Against Bd3} (21... Nxf1 $14 22. Rxf1 Bxc4) 22. Bc7 {[%emt 0:00:33]} (22. fxe4 $16 {Black must now prevent Bd3.} Bd4 23. Bc7 $1) 22... Nxf1 {[%emt 0:04:10]} 23. Rxf1 {[%emt 0:01:56]} exf3 {[%emt 0:00:12]} (23... Bxc4 $142 24. Re1 Bh6+ 25. Kc2 Bd3+ 26. Kc3 f5) 24. Rxf3 $16 {[%emt 0:01:44]} Bxc4 $14 {[%emt 0:00:13][%mdl 4096] Endgame KRB-KB} 25. b3 {[%emt 0:02:38]} Bd5 {[%emt 0:00:17]} 26. Rf2 {[%emt 0:01:28]} f5 {[%emt 0:02:34]} 27. Kd2 {[%emt 0:04:34]} Bd4 {[%emt 0:03:54]} 28. Re2 {[%emt 0:01:15]} Be4 {[%emt 0:00:10]} 29. Bf4 {[%emt 0:06:27]} a6 {[%emt 0:02:04]} 30. g3 {[%emt 0:02:05]} Kf7 {[%emt 0:01:11]} 31. Re1 {[%emt 0:01:10]} Ke6 {[%emt 0:01:07]} 32. Rc1 {[%emt 0:00:13]} Kd5 {[%emt 0:00:12] [#]} (32... Bd5 $16 {might work better.}) 33. Rc4 {[%emt 0:00:09]} ({White should try} 33. Ke2 $1 $18) 33... Bb1 $2 {[%emt 0:00:08][%mdl 8192] A mistake that costs the game.} (33... Bb6 $16 {is more resistant.}) 34. Ra4 $18 {[%emt 0:00:11]} Kc5 {[%emt 0:04:15]} 35. Rxa6 {[%emt 0:01:18]} Kb5 {[%emt 0:00:13]} 36. Ra8 {[%emt 0:00:49]} c5 {[%emt 0:04:45]} 37. Ra7 {[%emt 0:02:50]} h5 {[%emt 0:00:11]} 38. a4+ {[%emt 0:00:26]} Kb6 {[%emt 0:10:01]} 39. Re7 {[%emt 0:00:48]} Ka5 {[%emt 0:01:30]} 40. Rb7 {[%emt 0:00:28]} Be4 {[%emt 0:01:50]} 41. Rb5+ {[%emt 0:30:58]} Ka6 {[%emt 0:30:07]} 42. Rb8 {[%emt 0:01:46]} Bd5 {[%emt 0:02:01]} 43. b4 {[%emt 0:02:40]} cxb4 {[%emt 0:00:41]} 44. Rxb4 {[%emt 0:00:06]} Bb6 {[%emt 0:00:17]} 45. Kd3 {[%emt 0:00:46]} Bf7 {[%emt 0:01:21]} 46. Rb1 {[%emt 0:01:22]} Be8 {[%emt 0:12:34]} 47. Re1 {[%emt 0:01:03]} Bxa4 {[%emt 0:00:46]} 48. Re6 {[%emt 0:00:04]} Kb7 {[%emt 0:00:22]} (48... Kb5 $142 49. Ke2 (49. Rxg6 Bd1 $18) 49... Bc5 50. Rxg6 Kc4) 49. Rxg6 {[%emt 0:00:12]} Bd1 {[%emt 0:00:16]} 50. Kc4 {[%emt 0:00:15] Kd5 is the strong threat.} Be2+ {[%emt 0:04:15]} (50... Bf3 $142 51. Rh6 Bf2) 51. Kd5 {[%emt 0:00:09]} Bf3+ {[%emt 0:00:06]} 52. Ke6 {[%emt 0:00:06]} Bg4 {[%emt 0:00:12] [#]} 53. Rxg4 $1 {[%emt 0:00:43][%mdl 512] White mates.} fxg4 {[%emt 0:00:09] KB-KB} 54. Kf5 {[%emt 0:00:08]} Kc8 {[%emt 0:01:01]} 55. Kg5 {[%emt 0:00:20]} Kd7 {[%emt 0:00:08]} 56. Kxh5 {[%emt 0:00:04]} Ke8 {[%emt 0:00:17]} 57. Kxg4 {[%emt 0:00:05]} Kf7 {[%emt 0:00:06]} 58. Kf5 {[%emt 0:00:09]} Kg7 {[%emt 0:02:45]} 59. h5 {[%emt 0:00:12]} Bc5 {[%emt 0:00:37]} 60. g4 {[%emt 0:00:07][%cal Bg3g4,Bg4g5,Bg5g6][%mdl 32]} Kh7 {[%emt 0:01:51]} 61. g5 {[%emt 0:00:14]} Be7 {[%emt 0:01:49]} 62. h6 {[%emt 0:00:49]} Bf8 {[%emt 0:00:43]} 63. g6+ {[%emt 0:00:06]} Kg8 {[%emt 0:00:05]} 64. h7+ {[%emt 0:00:06]} Kh8 {[%emt 0:00:05]} 65. Be5+ {[%emt 0:00:08]} Bg7 {[%emt 0:00:08]} 66. Bxg7+ {[%emt 0:00:03]} Kxg7 {[%emt 0:00:05] KP-KP} 67. Ke4 {[%emt 0:00:16]} Kh8 {[%emt 0:00:08]} 68. Kd4 {[%emt 0:00:05]} Kg7 {[%emt 0:00:08]} 69. Kd5 {[%emt 0:00:02]} Kh8 {[%emt 0:00:14]} 70. Kd6 {[%emt 0:00:06]} Kg7 {[%emt 0:00:05]} 71. Kd7 {[%emt 0:00:05]} Kh8 {[%emt 0:00:08]} 72. Kd8 {[%emt 0:00:05]} Kg7 {[%emt 0:00:05]} 73. Ke7 {[%emt 0:00:08]} Kh8 {[%emt 0:00:08]} 74. Ke6 {[%emt 0:00:06]} Kg7 {[%emt 0:00:04]} 75. h8=Q+ {[%emt 0:00:18]} Kxh8 {[%emt 0:00:09]} 76. Kf6 {[%emt 0:00:01] Weighted Error Value: White=0.20 (precise) /Black=0.50} 1-0

[Event "Germany Countries-chT Youth 2022"]
[Site "Wiesbaden"]
[Date "2022.10.04"]
[Round "7"]
[White "Grossmann, Piet"]
[Black "Waffenschmidt, Lars"]
[Result "1/2-1/2"]
[ECO "C47"]
[WhiteElo "1945"]
[BlackElo "2302"]
[Annotator "TA"]
[PlyCount "54"]
[EventDate "2022.09.28"]
[EventType "team-tourn"]
[EventRounds "7"]
[EventCountry "GER"]
[SourceTitle "playchess.com"]
[Source "ChessBase"]
[SourceQuality "1"]
[TimeControl "40/5400+30:1800+30"]

{[%evp 11,54,37,37,41,40,36,19,0,0,0,0,0,0,0,0,0,0,0,0,0,14,3,38,2,2,2,12,0,0,0,0,0,0,0,0,0,0,0,0,0,0,0,0,0,0]} 1. e4 {[%emt 0:00:03]} e5 {[%emt 0:00:06]} 2. Nf3 {[%emt 0:00:03]} Nc6 {[%emt 0:00:06]} 3. Nc3 {[%emt 0:00:10]} Nf6 {[%emt 0:00:35]} 4. d4 {[%emt 0:00:05]} Bb4 {[%emt 0:06:01]} 5. Nxe5 {[%emt 0:13:42]} Bxc3+ {[%emt 0:01:44]} 6. bxc3 {[%emt 0:00:10]} Qe7 $1 {[%emt 0:01:53]} 7. Nxc6 {[%emt 0:06:05] C47: Scotch Four Knights and Four Knights with 4 g3.} Qxe4+ {[%emt 0:00:53]} 8. Qe2 {[%emt 0:00:10]} dxc6 {[%emt 0:08:03]} 9. f3 {[%emt 0:04:09]} Qxe2+ {[%emt 0:01:37]} 10. Bxe2 {[%emt 0:01:31]} Bf5 {[%emt 0:01:29]} 11. Bd3 {[%emt 0:03:49]} Bxd3 {[%emt 0:00:34]} 12. cxd3 {[%emt 0:00:04]} O-O-O {[%emt 0:00:14][%cal Oc6c5]} 13. Kd2 {[%emt 0:06:27]} Nd5 {[%emt 0:04:16]} 14. Ba3 {[%emt 0:06:57] [#]} h5 $146 {[%emt 0:05:47][%cal Bh7h5,Bh5h4][%mdl 32]} ({Predecessor:} 14... Rd7 15. Rhe1 Nf4 16. g3 Ne6 17. f4 g6 18. Re3 h5 19. Rf1 b6 20. f5 gxf5 21. Rxf5 {0-1 (52) Vanishvili,M (1918)-Kovanova,B (2317) Sochi 2022}) 15. Rae1 {[%emt 0:10:55]} Rde8 {[%emt 0:13:31]} 16. g3 {[%emt 0:01:18]} h4 {[%emt 0:03:24] [#] Threatens to win with ...Rxe1.} 17. Rxe8+ {[%emt 0:00:31]} Rxe8 $14 {[%emt 0:00:11][%mdl 4096] Endgame KRB-KRN. The position is equal.} 18. c4 {[%emt 0:00:30]} Nf6 {[%emt 0:05:02]} 19. Re1 {[%emt 0:00:46]} Rxe1 {[%emt 0:05:35]} 20. Kxe1 {[%emt 0:00:06]} hxg3 {[%emt 0:01:46]} 21. hxg3 $11 {[%emt 0:00:06] KB-KN} Kd7 {[%emt 0:00:15]} 22. Kf2 {[%emt 0:01:01]} Ke6 {[%emt 0:00:22]} 23. Bc1 {[%emt 0:04:02]} Ne8 {[%emt 0:06:29]} 24. g4 {[%emt 0:06:00]} Nd6 {[%emt 0:02:06]} 25. Bf4 {[%emt 0:09:47]} b5 {[%emt 0:03:18]} 26. Ke3 {[%emt 0:02:58]} a5 {[%emt 0:05:08]} 27. Bg3 {[%emt 0:12:25]} bxc4 {[%emt 0:17:58] Weighted Error Value: White=0.06 (flawless) /Black=0.04 (flawless)} 1/2-1/2

[Event "Germany Countries-chT Youth 2022"]
[Site "Wiesbaden"]
[Date "2022.10.04"]
[Round "7"]
[White "Möller, Maurin"]
[Black "Buchholz, Maja"]
[Result "1-0"]
[ECO "C06"]
[WhiteElo "1936"]
[BlackElo "1765"]
[Annotator "TA"]
[PlyCount "71"]
[EventDate "2022.09.28"]
[EventType "team-tourn"]
[EventRounds "7"]
[EventCountry "GER"]
[SourceTitle "playchess.com"]
[Source "ChessBase"]
[SourceQuality "1"]
[TimeControl "40/5400+30:1800+30"]

{[%evp 27,71,11,9,14,9,16,22,12,11,20,84,78,66,62,231,234,966,799,1119,1119,1114,1112,1059,1050,936,934,2710,2768,2472,2464,2464,2376,2285,2238,2219,2114,2107,2020,2034,1999,6112,527,6091,5916,5306,5297]} 1. e4 {[%emt 0:00:03]} e6 {[%emt 0:00:06]} 2. d4 {[%emt 0:00:03]} d5 {[%emt 0:00:05]} 3. Nd2 {[%emt 0:00:04]} Nf6 {[%emt 0:00:07]} 4. e5 {[%emt 0:00:11]} Nfd7 {[%emt 0:00:05]} 5. Bd3 {[%emt 0:00:08]} c5 {[%emt 0:00:09]} 6. c3 {[%emt 0:00:08]} Nc6 {[%emt 0:00:07]} 7. Ne2 {[%emt 0:00:10]} cxd4 {[%emt 0:00:09]} 8. cxd4 {[%emt 0:00:04]} f6 {[%emt 0:00:34]} 9. exf6 {[%emt 0:00:05]} Nxf6 {[%emt 0:00:06]} 10. O-O {[%emt 0:00:19]} Bd6 {[%emt 0:00:06]} 11. Nf3 {[%emt 0:00:05]} Qc7 {[%emt 0:00:06]} 12. Bg5 {[%emt 0:00:42]} O-O {[%emt 0:00:08]} 13. Bh4 {[%emt 0:00:47]} Nh5 {[%emt 0:00:21]} 14. Qc2 {[%emt 0:00:16]} h6 {[%emt 0:01:12]} 15. Bh7+ {[%emt 0:00:16] C06: French Tarrasch: 3...Nf6 4 e5 Nfd7 5 Bd3 main lines.} Kh8 {[%emt 0:00:07][%cal Of8f3]} 16. Bg6 {[%emt 0:00:03]} Rxf3 {[%emt 0:00:46]} 17. Bxh5 {[%emt 0:00:05] The position is equal.} Rf8 {[%emt 0:00:32]} 18. Bg3 {[%emt 0:06:06]} Bxg3 {[%emt 0:01:09]} (18... Bd7 $11 {keeps the balance.}) 19. fxg3 $16 {[%emt 0:06:46][%cal Rf1f8] [#]} ({But not} 19. hxg3 e5 $11) 19... Bd7 {[%emt 0:03:09]} 20. Nf4 {[%emt 0:03:20][%cal Be2f4,Bf4g6,Bg6e7][%mdl 32] [#] Strongly threatening Ng6+.} Rf6 $146 {[%emt 0:03:55]} (20... Kg8 $1 $14) ({Predecessor:} 20... Kg8 21. Bg6 Rf6 22. Bh7+ Kh8 23. Ng6+ Kxh7 24. Rxf6 gxf6 25. Nf8+ Kg7 26. Qg6+ Kxf8 27. Qxf6+ Ke8 28. Rf1 Qd6 29. Qh8+ {½-½ (29) Grigoriants,S (2503)-Kosyrev,V (2512) Elista 2000}) 21. Ng6+ $18 {[%emt 0:00:51]} Kg8 $2 {[%emt 0:00:08]} (21... Rxg6 22. Bxg6 Qb6) 22. Rxf6 {[%emt 0:00:10] Ne7+ is the strong threat. White is clearly winning.} ({Weaker is} 22. Ne5 Raf8 $16) 22... gxf6 {[%emt 0:00:09]} 23. Ne7+ $1 {[%emt 0:00:10]} Kh8 {[%emt 0:02:54] [#]} 24. Qg6 $1 {[%emt 0:00:27][%csl LRf6,LRh6][%cal Rg6h6]} Nxe7 {[%emt 0:00:36]} 25. Qxf6+ {[%emt 0:00:05]} Kg8 {[%emt 0:00:50]} 26. Qxe7 {[%emt 0:03:53] Intending Qf7+ and mate.} Rf8 {[%emt 0:02:06] Inhibits Qf7+.} 27. Bg6 {[%emt 0:00:17][%csl Gg6][%cal Re7h7]} Rf5 {[%emt 0:02:35]} 28. Qh7+ {[%emt 0:00:42]} Kf8 {[%emt 0:00:06]} 29. Qxh6+ {[%emt 0:00:36]} Kg8 {[%emt 0:01:16]} 30. Qh7+ {[%emt 0:00:16]} Kf8 {[%emt 0:00:07]} 31. Qh8+ {[%emt 0:00:03]} Ke7 {[%emt 0:00:12]} 32. Qg7+ {[%emt 0:01:03]} Kd8 {[%emt 0:00:12]} 33. Bxf5 {[%emt 0:00:04] Threatening mate with Qg5+.} exf5 {[%emt 0:00:06]} 34. Qf8+ {[%emt 0:00:37]} Be8 {[%emt 0:00:06]} 35. Re1 {[%emt 0:00:03][%csl Ge1][%cal Rf8e8]} Qd7 {[%emt 0:00:30]} 36. h4 {[%emt 0:00:19] White took control after the opening.  Weighted Error Value: White=0.03 (flawless) /Black=0.47} 1-0

[Event "Germany Countries-chT Youth 2022"]
[Site "Wiesbaden"]
[Date "2022.10.04"]
[Round "7"]
[White "Malinowsky, Levi"]
[Black "Nechitailo, Nikita"]
[Result "1/2-1/2"]
[ECO "B31"]
[WhiteElo "1879"]
[BlackElo "1651"]
[Annotator "NA RC COMBH"]
[PlyCount "130"]
[EventDate "2022.09.28"]
[EventType "team-tourn"]
[EventRounds "7"]
[EventCountry "GER"]
[SourceTitle "playchess.com"]
[Source "ChessBase"]
[SourceQuality "1"]
[TimeControl "40/5400+30:1800+30"]

{[%evp 8,113,9,32767,32767,32767,32767,32767,32767,32767,32767,32767,32767,32767,32767,32767,32767,32767,32767,32767,54,0,23,15,9,6,20,0,104,97,104,101,210,224,241,135,129,137,128,79,68,0,0,0,0,0,0,0,0,0,7,0,7,0,0,32767,32767,0,0,0,0,0,9,0,7,0,0,-64,11,32767,-168,-178,32767,32767,32767,32767,-82,-49,-66,-33,32767,32767,32767,-73,-33,-93,9,-36,-45,-45,-47,-57,-64,-64,-47,32767,32767,32767,32767,-93,32767,32767,32767,32767,-47,-379,-57,-88]} 1. e4 {[%emt 0:00:03]} c5 {[%emt 0:00:01]} 2. Nf3 {[%emt 0:00:07]} Nc6 {[%emt 0:00:04]} 3. Bb5 {[%emt 0:00:07]} g6 {[%emt 0:00:06]} 4. O-O {[%emt 0:00:24]} Bg7 {[%emt 0:00:06]} 5. c3 {[%emt 0:00:33]} Nf6 {[%emt 0:01:16]} 6. Re1 {[%emt 0:00:19]} O-O {[%emt 0:00:09]} 7. d4 {[%emt 0:01:01]} cxd4 {[%emt 0:02:50]} 8. cxd4 {[%emt 0:00:12]} d5 {[%emt 0:00:22]} 9. e5 {[%emt 0:00:19]} Ne4 {[%emt 0:00:56]} 10. Nc3 {[%emt 0:01:29]} Nxc3 {[%emt 0:01:11]} 11. bxc3 {[%emt 0:00:02]} Bg4 {[%emt 0:01:50]} 12. h3 {[%emt 0:04:23]} Bxf3 {[%emt 0:00:22]} 13. Qxf3 {[%emt 0:02:42]} Rc8 {[%emt 0:03:21]} 14. Ba3 {[%emt 0:15:23]} ({White should try} 14. Rb1 $14) 14... a6 {[%emt 0:09:08]} 15. Ba4 {[%emt 0:04:14]} Na5 {[%emt 0:00:32]} 16. Bb3 {[%emt 0:09:56]} Nc4 {[%emt 0:01:35]} 17. Bc5 {[%emt 0:02:07]} b5 {[%emt 0:22:10]} (17... Nxe5 $11 {remains equal.} 18. Qxd5 Qxd5 19. Bxd5 Nd3) 18. Bxc4 {[%emt 0:04:59]} bxc4 {[%emt 0:00:32]} 19. Rab1 {[%emt 0:02:18]} Rc6 {[%emt 0:14:30]} (19... Qd7 $16 {might work better.}) 20. Rb7 {[%emt 0:02:49]} Re8 {[%emt 0:03:23]} 21. Qg4 {[%emt 0:02:38]} e6 {[%emt 0:02:04] [#]} 22. Qf4 $1 {[%emt 0:01:36]} Rc7 {[%emt 0:00:18]} 23. Rb2 {[%emt 0:05:36]} (23. Reb1 $142) 23... Bf8 {[%emt 0:01:40]} 24. Bb6 {[%emt 0:03:27]} (24. Bxf8 $1 $14 Rxf8 25. Rb6) 24... Qb8 {[%emt 0:00:05]} 25. a4 $1 {[%emt 0:02:23]} Ba3 {[%emt 0:14:36]} (25... Rb7 $5 26. a5 $8 Be7 $11) 26. Rbb1 {[%emt 0:01:26]} ({Don't play} 26. Bxc7 Qxb2 27. Qg3 Qc2 $17) 26... Rb7 {[%emt 0:00:03]} 27. a5 {[%emt 0:00:55]} Be7 {[%emt 0:00:21]} 28. Re2 {[%emt 0:02:29]} Rc8 {[%emt 0:00:30]} 29. Reb2 {[%emt 0:02:13]} Rc6 {[%emt 0:02:44]} 30. Qd2 {[%emt 0:05:48]} Ba3 {[%emt 0:00:30]} 31. Ra2 {[%emt 0:01:27]} Be7 {[%emt 0:00:10]} 32. Qc2 {[%emt 0:01:42]} Qe8 {[%emt 0:07:53]} 33. Rab2 {[%emt 0:04:22]} Ba3 {[%emt 0:00:42]} 34. Ra2 {[%emt 0:00:06]} Be7 {[%emt 0:00:04]} 35. g3 {[%emt 0:03:50]} Rc8 {[%emt 0:00:43]} 36. h4 {[%emt 0:05:06]} Rcb8 {[%emt 0:00:29]} 37. h5 {[%emt 0:02:04]} (37. Qd2 $11) 37... Bd8 {[%emt 0:01:52]} (37... gxh5 $142 38. Qe2 h4) 38. Qa4 {[%emt 0:01:52]} Qxa4 {[%emt 0:03:44]} 39. Rxa4 {[%emt 0:00:02]} gxh5 {[%emt 0:00:07]} 40. Rab4 {[%emt 0:01:32]} Be7 {[%emt 0:00:07]} 41. R4b2 {[%emt 0:31:26]} Kf8 {[%emt 0:31:52]} 42. Kg2 Ke8 {[%emt 0:00:00]} 43. Rh1 $1 {[%emt 0:00:00]} h4 {[%emt 0:00:00]} 44. g4 {[%emt 0:00:00]} Kd7 {[%emt 0:00:00]} 45. Ra2 {[%emt 0:00:00]} Bg5 {[%emt 0:00:00]} (45... h5 $17 46. gxh5 Rh8) 46. f4 {[%emt 0:00:00]} (46. Rf1 $15 {might be stronger.}) 46... Bd8 {[%emt 0:00:00]} ({Black should play} 46... Bxf4 $17 47. Rxh4 h6) 47. f5 {[%emt 0:00:00]} (47. Bxd8 $11 Rb2+ 48. Rxb2 Rxb2+ 49. Kf3 Kxd8 50. Rxh4) 47... Bg5 {[%emt 0:00:00]} 48. f6 {[%emt 0:00:00]} Ke8 {[%emt 0:00:00]} 49. Kf3 {[%emt 0:00:00]} (49. Rb2 $11) 49... Kf8 {[%emt 0:02:43]} 50. Rhh2 {[%emt 0:00:00]} Kg8 {[%emt 0:00:22]} 51. Rh1 {[%emt 0:01:07]} h6 {[%emt 0:00:05]} 52. Rhh2 {[%emt 0:00:04]} Kh7 {[%emt 0:00:06]} 53. Rag2 {[%emt 0:01:01]} Kg6 {[%emt 0:01:15]} 54. Rh3 {[%emt 0:00:47]} h5 {[%emt 0:02:08]} 55. gxh5+ {[%emt 0:00:36]} Kxh5 {[%emt 0:00:05]} 56. Rg4 $19 {[%emt 0:00:36]} ({White should play} 56. Rhh2 $15) 56... Rh8 $2 {[%emt 0:03:22]} ({Black should play} 56... Rxb6 $19 57. axb6 Rxb6) 57. Rg2 {[%emt 0:01:28]} (57. Rh2 $11) 57... Rbb8 {[%emt 0:01:53]} 58. Rg4 {[%emt 0:01:02]} Rh6 {[%emt 0:00:23]} 59. Rg2 {[%emt 0:00:52]} Rg6 {[%emt 0:00:22]} 60. Rg4 {[%emt 0:01:40]} Rbg8 {[%emt 0:01:09]} 61. Bc5 {[%emt 0:01:14]} Bxf6 {[%emt 0:00:58]} 62. Rxg6 {[%emt 0:00:16]} Rxg6 {[%emt 0:00:10]} 63. exf6 {[%emt 0:00:30]} Rxf6+ {[%emt 0:00:01]} 64. Kg2 {[%emt 0:00:40]} Kg5 {[%emt 0:00:02]} 65. Be7 {[%emt 0:04:37]} e5 {[%emt 0:01:34]} 1/2-1/2